bitfinex/quotes_BTCUSD_20251214
["timestamp","ask_amount","ask_price","bid_price","bid_amount"]
[1765726237798,0.003,89075.0,89074.0,0.05703893]
[1765726253643,0.003,89075.0,89072.0,0.01122687]
[1765726254173,0.01122674,89073.0,89069.0,0.00311287]
[1765726254391,0.23576167,89073.0,89069.0,0.00311287]
[1765726254591,0.01122687,89072.0,89069.0,0.00311287]
[1765726255213,0.01122662,89074.0,89070.0,0.01122712]
[1765726255382,0.001,89075.0,89071.0,0.29001862]
[1765726255770,0.01122649,89075.0,89071.0,0.29001862]
[1765726255981,0.001,89072.0,89071.0,0.29001862]
[1765726256301,0.01122662,89074.0,89071.0,0.29001862]
[1765726256618,0.001,89075.0,89073.0,0.01122674]
[1765726256789,0.001,89075.0,89074.0,0.03380496]
[1765726256990,0.01122636,89076.0,89074.0,0.03380496]
[1765726257195,0.2357556,89076.0,89074.0,0.03380496]
[1765726257778,0.001,89075.0,89074.0,0.03380496]
[1765726258199,0.2357556,89076.0,89074.0,0.03380496]
[1765726258405,0.2357556,89076.0,89075.0,0.02951397]
[1765726258575,0.2367556,89076.0,89075.0,0.02951397]
[1765726259479,0.2387556,89076.0,89075.0,0.02951397]
[1765726259680,0.2367556,89076.0,89075.0,0.02951397]
[1765726259889,0.2357556,89076.0,89075.0,0.02951397]
[1765726260237,0.2387556,89076.0,89075.0,0.02951397]
[1765726262107,0.003,89076.0,89075.0,0.25404386]
[1765726262318,0.003,89076.0,89075.0,0.29418386]
[1765726262532,0.003,89076.0,89075.0,0.27012386]
[1765726262704,0.003,89076.0,89075.0,0.25404386]
[1765726264038,0.003,89076.0,89075.0,0.29579673]
[1765726264245,0.003,89076.0,89075.0,0.27173673]
[1765726266194,0.003,89076.0,89075.0,0.25565673]
[1765726268780,0.003,89076.0,89075.0,0.26688196]
[1765726269896,0.003,89076.0,89075.0,0.29094196]
[1765726273964,0.003,89076.0,89075.0,0.30702196]
[1765726279304,0.003,89076.0,89075.0,0.04235207]
[1765726279524,0.003,89076.0,89075.0,0.26688196]
[1765726279750,0.003,89076.0,89075.0,0.04235207]
[1765726279974,0.003,89076.0,89075.0,0.0407392]
[1765726280169,0.003,89076.0,89069.0,0.01272725]
[1765726280170,0.22454249,89070.0,89069.0,0.0015]
[1765726280382,0.33676901,89070.0,89069.0,0.0015]
[1765726280590,0.62746901,89070.0,89069.0,0.0015]
[1765726281238,0.62746901,89070.0,89017.0,0.44935231]
[1765726281239,0.43276245,89050.0,89031.0,0.01123204]
[1765726281446,0.43276245,89050.0,89035.0,0.0112309]
[1765726281447,0.23585533,89038.0,89035.0,0.0112309]
[1765726281626,0.0112309,89040.0,89036.0,0.01123141]
[1765726282260,0.23584619,89042.0,89037.0,0.23585675]
[1765726282466,0.23584619,89042.0,89039.0,0.01123103]
[1765726282467,0.01123065,89042.0,89039.0,0.01123103]
[1765726282898,0.01123078,89041.0,89036.0,0.01123141]
[1765726283113,0.001,89040.0,89037.0,0.0646048]
[1765726283307,0.01123078,89041.0,89037.0,0.0646048]
[1765726283724,0.0112309,89040.0,89037.0,0.0646048]
[1765726284062,0.001,89042.0,89039.0,0.2358517]
[1765726284265,0.01123078,89041.0,89038.0,0.01123115]
[1765726284469,0.01123078,89041.0,89037.0,0.05337352]
[1765726284470,0.2246229,89039.0,89037.0,0.05337352]
[1765726284695,0.2246229,89039.0,89029.0,0.01123229]
[1765726284696,0.01123191,89032.0,89029.0,0.01123229]
[1765726284894,0.01123166,89034.0,89029.0,0.01123229]
[1765726284895,0.01123166,89034.0,89030.0,0.01123216]
[1765726286068,0.01123191,89032.0,89027.0,0.01123254]
[1765726286349,0.01123191,89032.0,89028.0,0.01123242]
[1765726286550,0.01123204,89031.0,89030.0,0.001]
[1765726286750,0.01123204,89031.0,89030.0,0.003]
[1765726286907,0.01123204,89031.0,89030.0,0.02781209]
[1765726287274,0.01123179,89033.0,89030.0,0.02781209]
[1765726287472,0.001,89034.0,89033.0,0.2246358]
[1765726287671,0.001,89034.0,89033.0,0.24147867]
[1765726287986,0.001,89034.0,89033.0,0.26400867]
[1765726288195,0.01772,89044.0,89041.0,0.01123078]
[1765726288596,0.0289504,89044.0,89039.0,0.22461825]
[1765726288807,0.01123052,89043.0,89040.0,0.04958571]
[1765726289423,0.0289504,89044.0,89040.0,0.06081661]
[1765726289637,0.0289504,89044.0,89035.0,0.01123153]
[1765726289638,0.22462189,89039.0,89034.0,0.22463328]
[1765726289801,0.01123115,89038.0,89029.0,0.23587688]
[1765726289998,0.01123115,89038.0,89031.0,0.01123204]
[1765726289999,0.01123166,89034.0,89031.0,0.01123204]
[1765726291402,0.01223166,89034.0,89031.0,0.01123204]
[1765726291739,0.001,89034.0,89032.0,0.04829933]
[1765726292245,0.001,89034.0,89033.0,0.2246358]
[1765726292688,0.01123128,89037.0,89034.0,0.01123166]
[1765726294201,0.01123141,89036.0,89032.0,0.28416925]
[1765726294627,0.01123141,89036.0,89034.0,0.001]
[1765726294824,0.01123141,89036.0,89035.0,0.0543507]
[1765726295268,0.01223141,89036.0,89035.0,0.0543507]
[1765726295670,0.001,89037.0,89035.0,0.0543507]
[1765726295883,0.001,89036.0,89035.0,0.0543507]
[1765726296681,0.002,89036.0,89035.0,0.0543507]
[1765726296879,0.22663017,89036.0,89034.0,0.001]
[1765726297104,0.001,89036.0,89032.0,0.01123191]
[1765726297401,0.01423141,89036.0,89035.0,0.001]
[1765726297588,0.003,89036.0,89035.0,0.001]
[1765726297782,0.001,89036.0,89034.0,0.22463177]
[1765726297963,0.002,89036.0,89035.0,0.1279443]
[1765726298347,0.001,89036.0,89035.0,0.1279443]
[1765726298548,0.01772,89047.0,89044.0,0.0112304]
[1765726298751,0.01772,89047.0,89044.0,0.23583761]
[1765726298952,0.01772,89047.0,89045.0,0.22460371]
[1765726299200,0.01772,89047.0,89046.0,0.06962981]
[1765726300680,0.01872,89047.0,89046.0,0.06962981]
[1765726300879,0.01972,89047.0,89046.0,0.06962981]
[1765726302386,0.002,89047.0,89046.0,0.06962981]
[1765726304671,0.01123052,89043.0,89039.0,0.01123103]
[1765726304847,0.01123052,89043.0,89039.0,0.23584988]
[1765726305523,0.01123052,89043.0,89039.0,0.22461885]
[1765726305726,0.01123052,89043.0,89031.0,0.01123204]
[1765726305727,0.22462971,89036.0,89031.0,0.01123204]
[1765726306042,0.01123115,89038.0,89032.0,0.02471061]
[1765726306043,0.2358668,89034.0,89032.0,0.02471061]
[1765726306244,0.22464842,89028.0,89023.0,0.01123305]
[1765726306652,0.22463833,89032.0,89016.0,0.01123393]
[1765726306653,0.0112333,89021.0,89016.0,0.01123393]
[1765726306957,0.22463833,89032.0,89010.0,0.01225]
[1765726306958,0.01123418,89014.0,89010.0,0.01123469]
[1765726307183,0.0112338,89017.0,89013.0,0.01123431]
[1765726307371,0.01123406,89015.0,89012.0,0.01123444]
[1765726307573,0.01123368,89018.0,89013.0,0.01123431]
[1765726307822,0.0112338,89017.0,89014.0,0.01123418]
[1765726307966,0.0112338,89017.0,89016.0,0.001]
[1765726308167,0.23590998,89017.0,89016.0,0.001]
[1765726308380,0.23590998,89017.0,89015.0,0.05362745]
[1765726308614,0.23590998,89017.0,89013.0,0.00038646]
[1765726308615,0.22468375,89014.0,89013.0,0.00038646]
[1765726309574,0.22468375,89014.0,89013.0,0.00138646]
[1765726310074,0.22468375,89014.0,89013.0,0.00038646]
[1765726310327,0.22568375,89014.0,89013.0,0.00138646]
[1765726310699,0.22468375,89014.0,89013.0,0.00038646]
[1765726310900,0.22768375,89014.0,89013.0,0.00138646]
[1765726311863,0.22968375,89014.0,89013.0,0.00238646]
[1765726312951,0.2409197,89014.0,89013.0,0.00238646]
[1765726317794,0.2389197,89014.0,89013.0,0.00138646]
[1765726318248,0.58063809,89014.0,89013.0,0.00438646]
[1765726318781,0.57763809,89014.0,89013.0,0.00338646]
[1765726318995,0.57663809,89014.0,89013.0,0.00038646]
[1765726319249,0.57763809,89014.0,89013.0,0.00438646]
[1765726319411,0.57763809,89014.0,89013.0,0.00138646]
[1765726319755,0.57863809,89014.0,89013.0,0.00338646]
[1765726321072,0.57863809,89014.0,89013.0,0.00137646]
[1765726322116,0.58907561,89014.0,89013.0,0.00137646]
[1765726323348,0.57863809,89014.0,89013.0,0.00137646]
[1765726331342,0.58907499,89014.0,89013.0,0.00137646]
[1765726337813,0.61926013,89014.0,89013.0,0.00137646]
[1765726338398,0.58907499,89014.0,89013.0,0.00137646]
[1765726338610,0.61923185,89014.0,89013.0,0.00137646]
[1765726338818,0.58907499,89014.0,89013.0,0.00137646]
[1765726339792,0.61923185,89014.0,89013.0,0.00137646]
[1765726341104,0.58907499,89014.0,89013.0,0.00137646]
[1765726341459,0.61923185,89014.0,89013.0,0.00137646]
[1765726342079,0.58907499,89014.0,89013.0,0.00137646]
[1765726344473,0.60683499,89014.0,89013.0,0.00137646]
[1765726348487,0.5568166,89014.0,89013.0,0.00137646]
[1765726348691,0.002,89014.0,89013.0,0.00137646]
[1765726348874,0.04784546,89014.0,89013.0,0.00137646]
[1765726349083,0.05833394,89014.0,89013.0,0.00137646]
[1765726349355,0.04784546,89014.0,89013.0,0.00137646]
[1765726349552,0.23595028,89002.0,88996.0,0.2247273]
[1765726349789,0.01123582,89001.0,88997.0,0.02247273]
[1765726349994,0.01123582,89001.0,88997.0,0.25843401]
[1765726350535,0.01123595,89000.0,88997.0,0.02247273]
[1765726350760,0.22472162,88999.0,88997.0,0.02247273]
[1765726351796,0.22472648,88998.0,88996.0,0.00011558]
[1765726351997,0.0112357,89002.0,89000.0,0.2247191]
[1765726351999,0.001,89002.0,89000.0,0.2247191]
[1765726352143,0.001,89002.0,89000.0,0.22633197]
[1765726352338,0.01123557,89003.0,89000.0,0.00161287]
[1765726352580,0.03932451,89003.0,89001.0,0.05442291]
[1765726353046,0.02808894,89003.0,89001.0,0.05442291]
[1765726353584,0.03008894,89003.0,89001.0,0.27913943]
[1765726353787,0.002,89003.0,89001.0,0.27913943]
[1765726354191,0.001,89002.0,89001.0,0.27913943]
[1765726354595,0.002,89003.0,89001.0,0.29562943]
[1765726354797,0.01123456,89011.0,89007.0,0.01123507]
[1765726354993,0.01123456,89011.0,89002.0,0.08162654]
[1765726354994,0.01123532,89005.0,89002.0,0.08162654]
[1765726355217,0.002,89003.0,89001.0,0.00261287]
[1765726355427,0.002,89002.0,89001.0,0.00361287]
[1765726355635,0.002,89002.0,89001.0,0.25091944]
[1765726355947,0.02808736,89008.0,89005.0,0.01123532]
[1765726356127,0.03932142,89010.0,89007.0,0.01423507]
[1765726356769,0.02808673,89010.0,89007.0,0.01123507]
[1765726356979,0.02808673,89010.0,89008.0,0.2246989]
[1765726357184,0.03932054,89012.0,89008.0,0.23593384]
[1765726357803,0.02899418,89014.0,89010.0,0.01123469]
[1765726358271,0.01123444,89012.0,89008.0,0.23593384]
[1765726358441,0.02808641,89011.0,89008.0,0.2906421]
[1765726358645,0.02808641,89011.0,89008.0,0.2876421]
[1765726359085,0.02808641,89011.0,89010.0,0.22469385]
[1765726359286,0.01123431,89013.0,89010.0,0.23592854]
[1765726359491,0.001,89012.0,89011.0,0.08918622]
[1765726359903,0.01876,89014.0,89011.0,0.08918622]
[1765726360327,0.01876,89014.0,89012.0,0.2246888]
[1765726360724,0.01776,89014.0,89012.0,0.2246888]
[1765726361695,0.01876,89014.0,89012.0,0.2276888]
[1765726361919,0.01876,89014.0,89013.0,0.06510298]
[1765726363123,0.01876,89014.0,89013.0,0.06610298]
[1765726363329,0.01876,89014.0,89013.0,0.00261287]
[1765726363749,0.01776,89014.0,89013.0,0.00261287]
[1765726364111,0.01876,89014.0,89013.0,0.00461287]
[1765726366442,0.001,89014.0,89013.0,0.04469287]
[1765726366649,0.001,89014.0,89013.0,0.13219163]
[1765726367572,0.01772,89031.0,89030.0,0.22464337]
[1765726368048,0.01772,89031.0,89030.0,0.24274624]
[1765726368268,0.23584679,89041.0,89038.0,0.01123115]
[1765726368269,0.01123078,89041.0,89038.0,0.01123115]
[1765726368499,0.01772,89040.0,89038.0,0.05952594]
[1765726368708,0.01810646,89040.0,89038.0,0.05952594]
[1765726369350,0.01810646,89040.0,89038.0,0.28414677]
[1765726370199,0.02110646,89040.0,89038.0,0.28514677]
[1765726371641,0.02510646,89040.0,89038.0,0.28614677]
[1765726371857,0.02510646,89040.0,89039.0,0.07937335]
[1765726372688,0.02210646,89040.0,89039.0,0.30399402]
[1765726373087,0.02110646,89040.0,89039.0,0.30499402]
[1765726373481,0.22460259,89047.0,89039.0,0.30499402]
[1765726373482,0.02210646,89060.0,89057.0,0.22457527]
[1765726373702,0.01699492,89065.0,89057.0,0.22457527]
[1765726373703,0.01699492,89065.0,89064.0,0.22455762]
[1765726373921,0.01162586,89080.0,89073.0,0.01122674]
[1765726373922,0.01772,89076.0,89073.0,0.01122674]
[1765726374122,0.0004,89080.0,89073.0,0.01283961]
[1765726374324,0.01827285,89080.0,89079.0,0.01228]
[1765726374614,0.01827285,89080.0,89079.0,0.03038287]
[1765726374902,0.01827285,89080.0,89079.0,0.05397287]
[1765726375202,0.00051285,89080.0,89079.0,0.05397287]
[1765726375640,0.00251285,89080.0,89079.0,0.05397287]
[1765726376676,0.00251285,89080.0,89079.0,0.08120947]
[1765726377880,0.00051285,89080.0,89079.0,0.12047947]
[1765726378292,0.00151285,89080.0,89079.0,0.12047947]
[1765726378491,0.00051285,89080.0,89079.0,0.12147947]
[1765726378891,0.00251285,89080.0,89079.0,0.12047947]
[1765726380673,0.00251285,89080.0,89079.0,0.09709947]
[1765726380845,0.00251285,89080.0,89079.0,0.12047947]
[1765726381434,0.00251285,89080.0,89079.0,0.09709947]
[1765726382015,0.00251285,89080.0,89053.0,0.01168]
[1765726382016,0.01122762,89066.0,89053.0,0.01168]
[1765726382227,0.00571285,89080.0,89047.0,0.01168]
[1765726382228,0.43336364,89070.0,89064.0,0.01122788]
[1765726382445,0.01772,89069.0,89067.0,0.23577508]
[1765726382646,0.01772,89069.0,89068.0,0.05215838]
[1765726384438,0.01972,89069.0,89068.0,0.05215838]
[1765726384707,0.01972,89069.0,89068.0,0.09142838]
[1765726384926,0.001,89069.0,89068.0,0.09304125]
[1765726385145,0.003,89069.0,89068.0,0.09404125]
[1765726386564,0.003,89069.0,89068.0,0.07066125]
[1765726386772,0.003,89069.0,89068.0,0.09404125]
[1765726391711,0.22914501,89069.0,89068.0,0.001]
[1765726391942,0.22914501,89069.0,89068.0,0.22554753]
[1765726391943,0.0046,89069.0,89068.0,0.22554753]
[1765726392171,0.003,89069.0,89068.0,0.22554753]
[1765726392486,0.003,89069.0,89068.0,0.31480881]
[1765726394672,0.22914501,89069.0,89068.0,0.05099128]
[1765726394913,0.0046,89069.0,89068.0,0.05099128]
[1765726395456,0.003,89069.0,89068.0,0.05099128]
[1765726396478,0.003,89069.0,89068.0,0.04937841]
[1765726396479,0.0046,89069.0,89068.0,0.04937841]
[1765726396821,0.003,89069.0,89068.0,0.001]
[1765726399575,0.22914501,89069.0,89068.0,0.001]
[1765726399781,0.23074501,89069.0,89068.0,0.001]
[1765726400898,0.24846501,89069.0,89068.0,0.001]
[1765726401100,0.53916501,89069.0,89068.0,0.001]
[1765726401305,0.54963421,89069.0,89068.0,0.001]
[1765726401969,0.01122977,89049.0,89044.0,0.0112304]
[1765726402137,0.22459796,89048.0,89045.0,0.048292]
[1765726402504,0.0016,89046.0,89045.0,0.048292]
[1765726402714,0.22620301,89046.0,89045.0,0.048292]
[1765726402924,0.22620301,89046.0,89032.0,0.2358698]
[1765726402925,0.01123128,89037.0,89032.0,0.2358698]
[1765726403129,0.23586034,89036.0,89032.0,0.01123191]
[1765726403353,0.02899065,89042.0,89033.0,0.23586759]
[1765726403500,0.02899065,89042.0,89037.0,0.01123128]
[1765726403501,0.01123078,89041.0,89037.0,0.01123128]
[1765726403710,0.02899065,89042.0,89037.0,0.01123128]
[1765726403711,0.01776,89042.0,89039.0,0.01123103]
[1765726403913,0.003,89046.0,89045.0,0.001]
[1765726404117,0.02076,89046.0,89045.0,0.001]
[1765726404314,0.01776,89046.0,89044.0,0.2358362]
[1765726404518,0.01776,89046.0,89045.0,0.07554291]
[1765726404723,0.01776,89046.0,89043.0,0.01123052]
[1765726405032,0.01776,89046.0,89045.0,0.01589]
[1765726405212,0.01776,89046.0,89045.0,0.01689]
[1765726405213,0.01976,89046.0,89045.0,0.01689]
[1765726406332,0.01976,89046.0,89045.0,0.04005]
[1765726406559,0.02176,89046.0,89045.0,0.04005]
[1765726406761,0.02176,89046.0,89045.0,0.11725992]
[1765726406913,0.01976,89046.0,89045.0,0.11625992]
[1765726407410,0.01776,89046.0,89045.0,0.11625992]
[1765726407633,0.01776,89046.0,89045.0,0.09309992]
[1765726407865,0.01876,89046.0,89045.0,0.09409992]
[1765726408668,0.001,89046.0,89045.0,0.09571279]
[1765726409567,0.001,89046.0,89045.0,0.11887279]
[1765726409975,0.0026,89046.0,89045.0,0.07982279]
[1765726411003,0.22720301,89046.0,89045.0,0.07982279]
[1765726411206,0.001,89046.0,89045.0,0.07982279]
[1765726411388,0.001,89046.0,89045.0,0.00261287]
[1765726411999,0.22720301,89046.0,89045.0,0.00261287]
[1765726412146,0.22720301,89046.0,89045.0,0.001]
[1765726412345,0.22880301,89046.0,89045.0,0.001]
[1765726413638,0.22880301,89046.0,89038.0,0.01123115]
[1765726413639,0.01123078,89041.0,89038.0,0.01123115]
[1765726413899,0.01123078,89041.0,89039.0,0.07682861]
[1765726414108,0.002,89046.0,89044.0,0.22460592]
[1765726414396,0.004,89046.0,89045.0,0.01556]
[1765726414538,0.004,89046.0,89045.0,0.12628812]
[1765726414735,0.002,89046.0,89045.0,0.12628812]
[1765726414936,0.002,89046.0,89045.0,0.13639107]
[1765726415140,0.002,89046.0,89045.0,0.12628812]
[1765726415599,0.01776,89055.0,89052.0,0.01122939]
[1765726415808,0.01776,89055.0,89053.0,0.02582923]
[1765726417131,0.01776,89055.0,89053.0,0.25041243]
[1765726417286,0.01876,89055.0,89053.0,0.02682923]
[1765726418195,0.22458283,89054.0,89053.0,0.02682923]
[1765726418358,0.22618283,89054.0,89053.0,0.02682923]
[1765726418561,0.22778283,89054.0,89053.0,0.001]
[1765726418985,0.51848283,89054.0,89053.0,0.001]
[1765726419622,0.01123191,89032.0,89028.0,0.01123242]
[1765726419819,0.23586351,89035.0,89028.0,0.23588039]
[1765726420008,0.23586351,89035.0,89029.0,0.0517842]
[1765726420438,0.01123153,89035.0,89031.0,0.01123204]
[1765726420611,0.01123166,89034.0,89031.0,0.01123204]
[1765726421267,0.01223153,89035.0,89031.0,0.01123204]
[1765726421443,0.01123153,89035.0,89032.0,0.23587024]
[1765726421756,0.01123128,89037.0,89033.0,0.08961917]
[1765726422396,0.01123141,89036.0,89033.0,0.08961917]
[1765726422803,0.001,89034.0,89033.0,0.08961917]
[1765726423214,0.01123141,89036.0,89033.0,0.08961917]
[1765726423539,0.01123141,89036.0,89033.0,0.09161917]
[1765726423676,0.01123141,89036.0,89034.0,0.05868342]
[1765726424543,0.22463076,89035.0,89034.0,0.05868342]
[1765726424766,0.22623076,89035.0,89033.0,0.003]
[1765726425514,0.22623076,89035.0,89033.0,0.002]
[1765726425716,0.22623076,89035.0,89034.0,0.001]
[1765726426115,0.22623076,89035.0,89034.0,0.003]
[1765726426312,0.22623076,89035.0,89034.0,0.002]
[1765726426536,0.23586848,89033.0,89030.0,0.01123216]
[1765726427309,0.22563076,89035.0,89031.0,0.01123204]
[1765726427545,0.22563076,89035.0,89034.0,0.001]
[1765726427743,0.22463076,89035.0,89034.0,0.001]
[1765726428726,0.01123166,89034.0,89031.0,0.01123204]
[1765726428954,0.01123166,89034.0,89032.0,0.04942265]
[1765726429163,0.001,89033.0,89032.0,0.04942265]
[1765726429364,0.01123166,89034.0,89032.0,0.04942265]
[1765726429901,0.23686229,89035.0,89034.0,0.002]
[1765726430094,0.23586229,89035.0,89034.0,0.07832189]
[1765726432520,0.23586229,89035.0,89034.0,0.07932189]
[1765726432839,0.23686229,89035.0,89034.0,0.08132189]
[1765726434211,0.001,89035.0,89034.0,0.30595517]
[1765726434371,0.001,89035.0,89034.0,0.35707517]
[1765726435087,0.001,89035.0,89034.0,0.35868804]
[1765726441587,0.001,89035.0,89034.0,0.09533476]
[1765726441791,0.001,89035.0,89034.0,0.08293476]
[1765726442358,0.001,89035.0,89034.0,0.08275541]
[1765726442531,0.001,89035.0,89034.0,0.00461287]
[1765726444384,0.0026,89035.0,89034.0,0.00461287]
[1765726444667,0.0026,89035.0,89034.0,0.003]
[1765726445481,0.001,89035.0,89034.0,0.26621328]
[1765726445682,0.001,89035.0,89034.0,0.34225528]
[1765726446728,0.001,89035.0,89034.0,0.34386815]
[1765726447651,0.001,89035.0,89034.0,0.34425461]
[1765726451555,0.001,89035.0,89034.0,0.35624461]
[1765726456591,0.001,89035.0,89034.0,0.10818133]
[1765726457044,0.001,89035.0,89034.0,0.13161133]
[1765726460545,0.001,89035.0,89034.0,0.10818133]
[1765726460891,0.001,89035.0,89034.0,0.13161133]
[1765726462254,0.001,89035.0,89034.0,0.10818133]
[1765726462456,0.001,89035.0,89034.0,0.08104133]
[1765726462663,0.001,89035.0,89034.0,0.00499933]
[1765726464091,0.001,89035.0,89034.0,0.04357933]
[1765726472410,0.001,89035.0,89034.0,0.02014933]
[1765726472609,0.001,89035.0,89034.0,0.00499933]
[1765726482160,0.001,89035.0,89034.0,0.00338646]
[1765726482161,0.0042,89035.0,89034.0,0.00338646]
[1765726482330,0.01123545,89004.0,88999.0,0.01123608]
[1765726482474,0.2247224,88999.0,88997.0,0.0123]
[1765726482704,0.01123595,89000.0,88986.0,0.02353772]
[1765726482705,0.01123709,88991.0,88986.0,0.02353772]
[1765726482905,0.23597991,88991.0,88987.0,0.03077925]
[1765726483311,0.01123696,88992.0,88989.0,0.01123734]
[1765726484292,0.01123683,88993.0,88990.0,0.01123721]
[1765726484746,0.01123721,88990.0,88987.0,0.03077925]
[1765726485098,0.01123721,88990.0,88989.0,0.003]
[1765726485236,0.01123721,88990.0,88988.0,0.05510337]
[1765726485438,0.01123696,88992.0,88988.0,0.06634084]
[1765726485639,0.01123696,88992.0,88990.0,0.003]
[1765726485838,0.01123696,88992.0,88989.0,0.01123734]
[1765726486462,0.01123696,88992.0,88988.0,0.06634084]
[1765726486662,0.01123696,88992.0,88989.0,0.0492964]
[1765726486872,0.23597706,88992.0,88989.0,0.03805906]
[1765726487075,0.01123696,88992.0,88989.0,0.03805906]
[1765726487343,0.001,88990.0,88989.0,0.26580593]
[1765726487658,0.01123658,88995.0,88991.0,0.01123709]
[1765726487849,0.01123658,88995.0,88992.0,0.01123696]
[1765726488056,0.01123646,88996.0,88993.0,0.01123683]
[1765726488300,0.01123646,88996.0,88993.0,0.03449683]
[1765726488476,0.23595719,89000.0,88994.0,0.23597047]
[1765726489086,0.001,88995.0,88994.0,0.23597047]
[1765726489290,0.001,88995.0,88994.0,0.32365251]
[1765726489493,0.001,88995.0,88994.0,0.33872251]
[1765726489931,0.001,88995.0,88994.0,0.36198251]
[1765726490349,0.001,88998.0,88996.0,0.22472773]
[1765726490758,0.002,88998.0,88996.0,0.24798773]
[1765726490969,0.001,88998.0,88997.0,0.08562393]
[1765726491172,0.23595514,89000.0,88997.0,0.08562393]
[1765726491319,0.01123595,89000.0,88997.0,0.08562393]
[1765726491719,0.02899582,89001.0,88998.0,0.0112362]
[1765726491916,0.02899582,89001.0,88999.0,0.06284429]
[1765726492320,0.001,89000.0,88999.0,0.06284429]
[1765726492776,0.22470728,89005.0,89000.0,0.01123595]
[1765726492979,0.22470311,89007.0,89000.0,0.27589567]
[1765726493180,0.22470311,89007.0,89001.0,0.05971761]
[1765726493328,0.22470311,89007.0,89001.0,0.06133048]
[1765726493722,0.23594689,89004.0,89002.0,0.02326]
[1765726493938,0.22471405,89002.0,89001.0,0.06133048]
[1765726494168,0.22471405,89002.0,89001.0,0.00161287]
[1765726494770,0.22471405,89002.0,89001.0,0.001]
[1765726495011,0.22471405,89002.0,88986.0,0.02353772]
[1765726495012,0.23597165,88994.0,88990.0,0.01123721]
[1765726495331,0.01123683,88993.0,88990.0,0.01123721]
[1765726495618,0.01123683,88993.0,88991.0,0.03346522]
[1765726495835,0.2247393,88992.0,88991.0,0.03346522]
[1765726496050,0.22475193,88987.0,88984.0,0.0002]
[1765726497914,0.22475193,88987.0,88985.0,0.0022]
[1765726498138,0.22575193,88987.0,88985.0,0.0022]
[1765726498482,0.22575193,88987.0,88985.0,0.0032]
[1765726501372,0.001,88987.0,88985.0,0.0032]
[1765726501719,0.001,88987.0,88985.0,0.01628287]
[1765726501923,0.001,88987.0,88986.0,0.09004065]
[1765726502131,0.001,88987.0,88986.0,0.09165352]
[1765726502362,0.001,88987.0,88986.0,0.10941352]
[1765726502565,0.001,88987.0,88986.0,0.1095291]
[1765726502936,0.02899507,89007.0,89000.0,0.01123595]
[1765726503140,0.02899507,89007.0,89001.0,0.03871605]
[1765726503450,0.02899507,89007.0,89002.0,0.01147]
[1765726503643,0.01123532,89005.0,89002.0,0.0227057]
[1765726504286,0.02899507,89007.0,89006.0,0.22470395]
[1765726504287,0.01776,89007.0,89006.0,0.22470395]
[1765726504490,0.001,89007.0,89006.0,0.23982395]
[1765726504695,0.01123418,89014.0,89010.0,0.23592841]
[1765726504896,0.02899406,89015.0,89011.0,0.23592382]
[1765726505105,0.02899406,89015.0,89011.0,0.27170669]
[1765726505311,0.01776,89015.0,89012.0,0.25862094]
[1765726505552,0.01776,89015.0,89013.0,0.22468434]
[1765726505729,0.01776,89015.0,89014.0,0.06812925]
[1765726505941,0.01776,89015.0,89014.0,0.09082925]
[1765726506352,0.01976,89015.0,89014.0,0.01512]
[1765726506575,0.02176,89015.0,89013.0,0.22468434]
[1765726506801,0.02185112,89015.0,89012.0,0.23953381]
[1765726506935,0.01985112,89015.0,89012.0,0.23853381]
[1765726507140,0.01985112,89015.0,89013.0,0.2246842]
[1765726507339,0.00509112,89015.0,89014.0,0.09169861]
[1765726507528,0.00209112,89015.0,89014.0,0.09069861]
[1765726507727,9.112e-05,89015.0,89014.0,0.07557861]
[1765726508230,0.00509112,89015.0,89014.0,0.07657861]
[1765726508985,0.00509112,89015.0,89014.0,0.30126236]
[1765726509188,0.00509112,89015.0,89014.0,0.07657861]
[1765726509393,0.00309112,89015.0,89014.0,0.07657861]
[1765726509616,0.00609112,89015.0,89014.0,0.07757861]
[1765726510575,1.12e-06,89015.0,89014.0,0.34169523]
[1765726510805,0.01123065,89042.0,89038.0,0.01123115]
[1765726511003,0.01123065,89042.0,89035.0,0.01123153]
[1765726511004,0.01123078,89041.0,89039.0,0.02583269]
[1765726511744,0.0003864,89042.0,89039.0,0.03706372]
[1765726511893,0.0003864,89042.0,89039.0,0.26168189]
[1765726513389,0.0013864,89042.0,89039.0,0.26268189]
[1765726513664,0.0013864,89042.0,89040.0,0.07798]
[1765726514464,0.0023864,89042.0,89040.0,0.07798]
[1765726514987,0.0013864,89042.0,89040.0,0.07798]
[1765726515387,0.0013864,89042.0,89041.0,0.22461562]
[1765726515567,0.0013864,89042.0,89041.0,0.28183006]
[1765726515773,0.0023864,89042.0,89041.0,0.28183006]
[1765726516218,0.0013864,89042.0,89041.0,0.28183006]
[1765726516632,0.0023864,89042.0,89041.0,0.28283006]
[1765726517211,0.0013864,89042.0,89041.0,0.28283006]
[1765726517416,0.0013864,89042.0,89041.0,0.28383006]
[1765726520334,0.0013864,89042.0,89041.0,0.33312006]
[1765726520763,0.0013864,89042.0,89041.0,0.31042006]
[1765726521388,0.0013864,89042.0,89041.0,0.29530006]
[1765726523025,0.0013864,89042.0,89041.0,0.31042006]
[1765726523173,0.0013864,89042.0,89041.0,0.33312006]
[1765726523580,0.0013864,89042.0,89041.0,0.33473293]
[1765726524795,0.0003864,89042.0,89041.0,0.33273293]
[1765726525004,0.0003864,89042.0,89041.0,0.33373293]
[1765726525204,0.0013864,89042.0,89041.0,0.33573293]
[1765726525424,0.0003864,89042.0,89041.0,0.33373293]
[1765726525843,0.0013864,89042.0,89041.0,0.33573293]
[1765726526362,0.0013864,89042.0,89041.0,0.33473293]
[1765726526506,0.0013864,89042.0,89041.0,0.33573293]
[1765726535305,0.0013864,89042.0,89041.0,0.06182731]
[1765726535552,0.2345995,89042.0,89041.0,0.003]
[1765726536434,0.2345995,89042.0,89041.0,0.002]
[1765726536771,0.2365995,89042.0,89041.0,0.002]
[1765726537602,0.23588137,89028.0,89024.0,0.01123292]
[1765726537805,0.23588137,89028.0,89025.0,0.03822258]
[1765726537806,0.02899242,89028.0,89025.0,0.03822258]
[1765726538024,0.01776,89028.0,89026.0,0.22465347]
[1765726538405,0.01776,89028.0,89025.0,0.26287752]
[1765726538704,0.01876,89028.0,89025.0,0.26287752]
[1765726538899,0.01776,89028.0,89025.0,0.26387752]
[1765726539161,0.01776,89028.0,89026.0,0.07581326]
[1765726539392,0.01776,89028.0,89026.0,0.07781326]
[1765726539393,0.01876,89028.0,89026.0,0.07781326]